bitfinex-derivatives/quotes_BTCF0:USTF0_20241025
["timestamp","ask_amount","ask_price","bid_price","bid_amount"]
[1729892940919,0.20711547,67267.0,67266.0,0.42591836]
[1729892941125,0.56791547,67267.0,67266.0,0.42591836]
[1729892941427,0.6214879,67267.0,67266.0,0.42591836]
[1729892943124,0.2606879,67267.0,67265.0,0.0313]
[1729892943329,0.19522547,67267.0,67266.0,0.42591836]
[1729892943521,0.6095854,67267.0,67266.0,0.42591836]
[1729892944218,0.2487854,67267.0,67266.0,0.42591836]
[1729892944418,0.6095854,67267.0,67266.0,0.42591836]
[1729892944932,0.67177166,67267.0,67266.0,0.42591836]
[1729892945518,0.31097166,67267.0,67266.0,0.42591836]
[1729892945924,0.67177166,67267.0,67266.0,0.42591836]
[1729892946125,0.31097166,67267.0,67266.0,0.42591836]
[1729892946333,0.67177166,67267.0,67266.0,0.42591836]
[1729892946631,0.074465,67256.0,67255.0,0.3608]
[1729892946830,0.10050781,67256.0,67253.0,0.4242]
[1729892947027,0.121489,67256.0,67255.0,0.42591836]
[1729892947229,0.17492843,67256.0,67255.0,0.42591836]
[1729892949330,0.20199174,67256.0,67255.0,0.42591836]
[1729892949523,0.14855231,67256.0,67255.0,0.48515467]
[1729892951325,0.14855231,67256.0,67255.0,0.42591836]
[1729892951625,0.14855231,67256.0,67255.0,0.48515467]
[1729892952324,0.14855231,67256.0,67255.0,0.42591836]
[1729892953424,0.16044231,67256.0,67255.0,0.42591836]
[1729892955936,0.11341831,67256.0,67255.0,0.42591836]
[1729892956234,0.16044231,67256.0,67255.0,0.42591836]
[1729892964429,0.16044231,67256.0,67255.0,0.48515467]
[1729892965235,0.16044231,67256.0,67255.0,0.42591836]
[1729892996154,0.16044231,67256.0,67253.0,0.0634]
[1729892996463,0.14855231,67256.0,67253.0,0.0634]
[1729892997264,0.14855231,67256.0,67255.0,0.42591836]
[1729893006670,0.14855231,67256.0,67255.0,0.47036832]
[1729893007370,0.14855231,67256.0,67255.0,0.42591836]
[1729893009773,0.26338695,67256.0,67255.0,0.37374773]
[1729893010767,0.21636295,67256.0,67255.0,0.37374773]
[1729893011370,0.2153662,67256.0,67255.0,0.37374773]
[1729893016776,0.10152831,67256.0,67255.0,0.37374773]
[1729893031794,0.28485458,67256.0,67255.0,0.37374773]
[1729893033894,0.64565458,67256.0,67255.0,0.37374773]
[1729893034602,0.64565458,67256.0,67247.0,0.0644]
[1729893034902,0.168522,67248.0,67247.0,0.0644]
[1729893035090,0.28226322,67248.0,67247.0,0.0644]
[1729893035296,0.28226322,67248.0,67247.0,0.43814773]
[1729893039596,0.28226322,67248.0,67247.0,0.38597313]
[1729893039796,0.168522,67248.0,67247.0,0.44523649]
[1729893041004,0.168522,67248.0,67247.0,0.38597313]
[1729893043100,0.19520693,67248.0,67247.0,0.38597313]
[1729893045010,0.19520693,67248.0,67244.0,0.0312]
[1729893045011,0.074477,67245.0,67244.0,0.0312]
[1729893045305,0.074477,67245.0,67244.0,0.0643]
[1729893045503,0.074477,67245.0,67244.0,0.43804773]
[1729893046904,0.1265305,67245.0,67244.0,0.43804773]
[1729893047698,0.074477,67245.0,67244.0,0.43804773]
[1729893048104,0.12651482,67245.0,67244.0,0.43804773]
[1729893048298,0.074477,67245.0,67244.0,0.43804773]
[1729893048702,0.12649597,67245.0,67244.0,0.43804773]
[1729893054210,0.12649597,67245.0,67244.0,0.0643]
[1729893054415,0.12649597,67245.0,67244.0,0.43804773]
[1729893054709,0.074477,67245.0,67244.0,0.49732695]
[1729893056511,0.074477,67245.0,67244.0,0.37374773]
[1729893056512,0.121501,67245.0,67244.0,0.37374773]
[1729893056719,0.133391,67245.0,67244.0,0.22238014]
[1729893056911,0.133391,67245.0,67244.0,0.2668384]
[1729893057227,0.133391,67245.0,67244.0,0.2668332]
[1729893057411,0.133391,67245.0,67244.0,0.22238014]
[1729893058717,0.494191,67245.0,67244.0,0.22238014]
[1729893060112,0.447167,67245.0,67244.0,0.22238014]
[1729893060705,0.541215,67245.0,67244.0,0.22238014]
[1729893061706,0.59279705,67245.0,67244.0,0.22238014]
[1729893062520,0.23199705,67245.0,67244.0,0.22238014]
[1729893062723,0.59279705,67245.0,67244.0,0.22238014]
[1729893063112,0.51832005,67245.0,67232.0,0.467251]
[1729893063308,0.494191,67245.0,67244.0,0.22238014]
[1729893063610,0.54574787,67245.0,67244.0,0.22238014]
[1729893063921,0.18494787,67245.0,67244.0,0.22238014]
[1729893064110,0.54574787,67245.0,67244.0,0.22238014]
[1729893064514,0.59277187,67245.0,67244.0,0.22238014]
[1729893069224,0.51829487,67245.0,67244.0,0.22238014]
[1729893069422,0.59277187,67245.0,67244.0,0.22238014]
[1729893069718,0.541215,67245.0,67244.0,0.17019846]
[1729893072230,0.541215,67245.0,67238.0,0.04445602]
[1729893072231,0.074484,67239.0,67238.0,0.04445602]
[1729893072413,0.121508,67239.0,67238.0,0.04445602]
[1729893072610,0.121508,67239.0,67238.0,0.21465448]
[1729893076821,0.121508,67239.0,67238.0,0.17019846]
[1729893080325,0.074486,67237.0,67232.0,0.0312]
[1729893080526,0.047024,67233.0,67232.0,0.0312]
[1729893081027,0.047024,67233.0,67232.0,0.20139846]
[1729893082729,0.121514,67233.0,67232.0,0.20139846]
[1729893083720,0.168538,67233.0,67232.0,0.17019846]
[1729893084028,0.529338,67233.0,67232.0,0.17019846]
[1729893085529,0.55676041,67233.0,67232.0,0.17019846]
[1729893086916,0.19596041,67233.0,67232.0,0.17019846]
[1729893087121,0.55676041,67233.0,67232.0,0.17019846]
[1729893091227,0.19596041,67233.0,67232.0,0.17019846]
[1729893091537,0.55676041,67233.0,67232.0,0.17019846]
[1729893094837,0.19596041,67233.0,67232.0,0.2146379]
[1729893095040,0.55676041,67233.0,67232.0,0.2146379]
[1729893099027,0.55676041,67233.0,67232.0,0.17019846]
[1729893099839,0.19596041,67233.0,67232.0,0.17019846]
[1729893100038,0.55676041,67233.0,67232.0,0.17019846]
[1729893100241,0.56865041,67233.0,67232.0,0.17019846]
[1729893102943,0.20785041,67233.0,67232.0,0.17019846]
[1729893103145,0.56865041,67233.0,67232.0,0.17019846]
[1729893103342,0.20785041,67233.0,67232.0,0.17019846]
[1729893103538,0.56865041,67233.0,67232.0,0.17019846]
[1729893103939,0.20785041,67233.0,67232.0,0.17019846]
[1729893104248,0.56865041,67233.0,67232.0,0.17019846]
[1729893106340,0.20785041,67233.0,67232.0,0.17019846]
[1729893106643,0.56865041,67233.0,67232.0,0.17019846]
[1729893107037,0.56865041,67233.0,67232.0,0.2146379]
[1729893107242,0.20785041,67233.0,67232.0,0.2146379]
[1729893107548,0.56865041,67233.0,67232.0,0.2146379]
[1729893108044,0.20785041,67233.0,67232.0,0.2146379]
[1729893108242,0.56865041,67233.0,67232.0,0.2146379]
[1729893110532,0.56865041,67233.0,67232.0,0.17019846]
[1729893122139,0.677851,67233.0,67232.0,0.11800901]
[1729893123137,0.54469927,67233.0,67232.0,0.11800901]
[1729893123341,0.67733761,67233.0,67232.0,0.11800901]
[1729893123542,0.61918927,67233.0,67232.0,0.11800901]
[1729893124444,0.67734974,67233.0,67232.0,0.11800901]
[1729893125548,0.67679512,67233.0,67232.0,0.11800901]
[1729893126848,0.31599512,67233.0,67232.0,0.11800901]
[1729893127049,0.67679512,67233.0,67232.0,0.11800901]
[1729893127545,0.61869315,67233.0,67232.0,0.11800901]
[1729893129046,0.56865041,67233.0,67232.0,0.11800901]
[1729893130054,0.56865041,67233.0,67232.0,0.16248359]
[1729893130358,0.56865041,67233.0,67232.0,0.11800901]
[1729893131047,0.56865041,67233.0,67232.0,0.16248282]
[1729893131353,0.56865041,67233.0,67232.0,0.16248276]
[1729893136554,0.47460241,67233.0,67232.0,0.16248276]
[1729893136755,0.24279099,67248.0,67231.0,0.0324]
[1729893136957,0.4256,67258.0,67231.0,0.0324]
[1729893136958,0.047024,67246.0,67245.0,0.3608]
[1729893137159,0.094048,67246.0,67245.0,0.3608]
[1729893137355,0.094048,67246.0,67245.0,0.881397]
[1729893137556,0.02671149,67258.0,67245.0,0.80692]
[1729893137758,0.1200448,67257.0,67248.0,0.074474]
[1729893137960,0.074464,67257.0,67248.0,0.074474]
[1729893138260,0.047024,67249.0,67248.0,0.074474]
[1729893138658,0.047024,67249.0,67248.0,0.520594]
[1729893141561,0.047024,67249.0,67248.0,0.44612]
[1729893142455,0.074469,67253.0,67248.0,0.44612]
[1729893142661,0.074469,67253.0,67247.0,0.0315]
[1729893142662,0.047024,67249.0,67247.0,0.0315]
[1729893142859,0.047024,67247.0,67245.0,0.3608]
[1729893143064,0.074476,67246.0,67245.0,0.3608]
[1729893146157,0.1215,67246.0,67245.0,0.3608]
[1729893146870,0.074476,67246.0,67245.0,0.3608]
[1729893147654,0.14850657,67246.0,67245.0,0.3608]
[1729893147853,0.10148257,67246.0,67245.0,0.3608]
[1729893148067,0.10148257,67246.0,67241.0,0.3608]
[1729893148259,0.047024,67242.0,67241.0,0.3608]
[1729893149164,0.047024,67242.0,67235.0,0.074488]
[1729893149469,0.047024,67242.0,67241.0,0.3608]
[1729893155369,0.121504,67242.0,67241.0,0.3608]
[1729893156071,0.047024,67242.0,67235.0,0.074488]
[1729893156270,0.047024,67238.0,67235.0,0.074488]
[1729893156866,0.047024,67236.0,67235.0,0.074488]
[1729893158077,0.047024,67236.0,67235.0,0.435288]
[1729893161778,0.0743645,67236.0,67235.0,0.49433498]
[1729893162284,0.1488515,67236.0,67235.0,0.435288]
[1729893162479,0.1488515,67236.0,67235.0,0.49438571]
[1729893162871,0.1488515,67236.0,67235.0,0.435288]
[1729893163072,0.1488515,67236.0,67235.0,0.49438571]
[1729893163974,0.1488515,67236.0,67235.0,0.435288]
[1729893166777,0.1488515,67236.0,67235.0,0.47963005]
[1729893168075,0.1488515,67236.0,67235.0,0.435288]
[1729893168969,0.1488515,67236.0,67235.0,0.47961658]
[1729893169170,0.1488515,67236.0,67235.0,0.435288]
[1729893169373,0.1488515,67236.0,67235.0,0.47962011]
[1729893169583,0.1488515,67236.0,67235.0,0.435288]
[1729893172186,0.1607415,67236.0,67235.0,0.435288]
[1729893172880,0.0392305,67236.0,67235.0,0.435288]
[1729893173785,0.0392305,67236.0,67235.0,0.49441054]
[1729893174571,0.0392305,67236.0,67235.0,0.614558]
[1729893174982,0.0392305,67236.0,67235.0,0.52598753]
[1729893177273,0.0392305,67236.0,67235.0,0.614558]
[1729893177989,0.0392305,67236.0,67235.0,0.52598753]
[1729893178281,0.0392305,67236.0,67235.0,0.614558]
[1729893178582,0.0392305,67236.0,67235.0,0.61477067]
[1729893179083,0.0392305,67236.0,67235.0,0.52598753]
[1729893180286,0.0392305,67236.0,67235.0,0.61477065]
[1729893180491,0.0392305,67236.0,67235.0,0.52598753]
[1729893182186,0.0392305,67236.0,67235.0,0.52571788]
[1729893182883,0.0392305,67236.0,67235.0,0.97191788]
[1729893183187,0.0392305,67236.0,67235.0,0.61448352]
[1729893183688,0.0392305,67236.0,67235.0,0.97191788]
[1729893183890,0.0392305,67236.0,67235.0,0.99444024]
[1729893183891,0.01189,67236.0,67235.0,0.99444024]
[1729893184097,0.033,67248.0,67235.0,0.99444024]
[1729893184098,0.074472,67250.0,67235.0,1.70102415]
[1729893184281,0.074472,67250.0,67249.0,0.50922219]
[1729893184486,0.074472,67250.0,67249.0,0.52544421]
[1729893185196,0.00124,67258.0,67251.0,0.074471]
[1729893185492,0.047024,67263.0,67262.0,0.074458]
[1729893185797,0.047024,67263.0,67262.0,0.13355019]
[1729893186290,0.07377193,67263.0,67262.0,0.074458]
[1729893187190,0.02674793,67263.0,67262.0,0.074458]
[1729893187389,0.047024,67264.0,67263.0,0.074457]
[1729893188897,0.047024,67264.0,67263.0,0.435257]
[1729893189098,0.047024,67264.0,67263.0,0.47948802]
[1729893189404,0.047024,67264.0,67263.0,0.435257]
[1729893192993,0.047024,67264.0,67263.0,0.074457]
[1729893193201,0.047024,67264.0,67263.0,0.435257]
[1729893194797,0.047024,67264.0,67263.0,0.074457]
[1729893194997,0.047024,67264.0,67263.0,0.435257]
[1729893196991,0.047024,67264.0,67263.0,0.074457]
[1729893197191,0.047024,67264.0,67263.0,0.435257]
[1729893199291,0.047024,67264.0,67263.0,0.074457]
[1729893199495,0.047024,67264.0,67263.0,0.435257]
[1729893200202,0.047024,67264.0,67263.0,0.074457]
[1729893200500,0.047024,67264.0,67263.0,0.435257]
[1729893202198,0.08691927,67270.0,67267.0,0.074452]
[1729893202494,0.08691927,67270.0,67268.0,0.074452]
[1729893203693,0.08691927,67270.0,67263.0,0.3608]
[1729893203895,0.08691927,67270.0,67269.0,0.074451]
[1729893204594,0.05651927,67270.0,67269.0,0.435251]
[1729893210104,0.05651927,67270.0,67269.0,0.3608]
[1729893210300,0.13096827,67270.0,67269.0,0.3608]
[1729893210494,0.02651927,67270.0,67269.0,0.529299]
[1729893210799,0.074443,67277.0,67269.0,0.454848]
[1729893210999,0.04580345,67276.0,67269.0,0.454848]
[1729893211206,0.04580345,67275.0,67272.0,0.074447]
[1729893211400,0.074443,67277.0,67272.0,0.074447]
[1729893211599,0.074443,67277.0,67274.0,0.04423102]
[1729893212402,0.074443,67277.0,67276.0,0.04423102]
[1729893213310,0.074443,67277.0,67275.0,0.3608]
[1729893215106,0.074443,67277.0,67276.0,0.04424156]
[1729893215305,0.074443,67277.0,67275.0,0.3608]
[1729893216310,0.0312,67279.0,67276.0,0.074442]
[1729893216614,0.0312,67279.0,67277.0,0.04425057]
[1729893217511,0.0312,67279.0,67275.0,0.41989219]
[1729893217713,0.0312,67279.0,67276.0,0.05909219]
[1729893217905,0.0312,67279.0,67277.0,0.05909219]
[1729893218215,0.0312,67279.0,67276.0,0.05909219]
[1729893218911,0.0312,67279.0,67278.0,0.074441]
[1729893222721,0.0312,67279.0,67278.0,0.435241]
[1729893223713,0.0312,67279.0,67278.0,0.074441]
[1729893223914,0.0312,67279.0,67278.0,0.435241]
[1729893224220,0.02725526,67280.0,67279.0,0.07444]
[1729893224413,0.074429,67289.0,67286.0,0.074432]
[1729893224612,0.04659544,67288.0,67282.0,0.094048]
[1729893224815,0.04659544,67287.0,67282.0,0.094048]
[1729893225015,0.04659544,67286.0,67284.0,0.3608]
[1729893225222,0.0607,67290.0,67289.0,0.074428]
[1729893225520,0.13394716,67290.0,67289.0,0.074428]
[1729893226026,0.22799516,67290.0,67289.0,0.074428]
[1729893227024,0.18126304,67290.0,67289.0,0.074428]
[1729893227317,0.18126304,67290.0,67285.0,0.074432]
[1729893227724,0.18126304,67290.0,67286.0,0.074432]
[1729893231218,0.18126304,67290.0,67284.0,0.074434]
[1729893231418,0.18126304,67290.0,67286.0,0.074431]
[1729893233024,0.18126304,67290.0,67283.0,0.3608]
[1729893233326,0.18126304,67290.0,67289.0,0.074428]
[1729893233521,0.18126304,67290.0,67287.0,0.074431]
[1729893235229,0.18126304,67290.0,67284.0,0.04423979]
[1729893235427,0.18126304,67290.0,67289.0,0.074428]
[1729893236525,0.13423904,67290.0,67289.0,0.074428]
[1729893240123,0.08721504,67290.0,67289.0,0.074428]
[1729893240328,0.05691504,67290.0,67289.0,0.074428]
[1729893242029,0.10393629,67290.0,67289.0,0.074428]
[1729893249132,0.05691504,67290.0,67289.0,0.074428]
[1729893250234,0.05691504,67290.0,67289.0,0.11866779]
[1729893253434,0.05691504,67290.0,67289.0,0.074428]
[1729893257048,0.10481406,67290.0,67289.0,0.074428]
[1729893259637,0.10483049,67290.0,67289.0,0.074428]
[1729893264150,0.05691504,67290.0,67289.0,0.074428]
[1729893271349,0.05895379,67290.0,67289.0,0.074428]
[1729893278961,0.06099254,67290.0,67289.0,0.074428]
[1729893279259,0.10896496,67290.0,67289.0,0.074428]
[1729893280262,0.06099254,67290.0,67289.0,0.074428]
[1729893303173,0.10801654,67290.0,67289.0,0.074428]
[1729893303679,0.06099254,67290.0,67289.0,0.074428]
[1729893318186,0.06099254,67290.0,67287.0,0.4346905]
[1729893318386,0.06099254,67290.0,67287.0,0.5091205]
[1729893318990,0.0040775,67289.0,67287.0,0.5091205]
[1729893319486,0.0040775,67289.0,67287.0,0.1483205]
[1729893319686,0.0040775,67289.0,67287.0,0.5091205]
[1729893320084,0.0040775,67288.0,67287.0,0.5091205]
[1729893325687,0.0040775,67288.0,67287.0,0.43523]
[1729893325893,0.0040775,67288.0,67287.0,0.5091205]
[1729893332500,0.0040775,67288.0,67287.0,0.43523]
[1729893333099,0.0040775,67288.0,67287.0,0.07443]
[1729893335324,0.00611625,67288.0,67287.0,0.07443]
[1729893335818,0.00611625,67288.0,67281.0,0.04435398]
[1729893336012,0.121455,67287.0,67286.0,0.3608]
[1729893336211,0.12757125,67287.0,67286.0,0.3608]
[1729893337013,0.17459525,67287.0,67286.0,0.3608]
[1729893337215,0.094048,67286.0,67278.0,0.3608]
[1729893337416,0.121464,67279.0,67278.0,0.3608]
[1729893338517,0.12758025,67279.0,67278.0,0.3608]
[1729893339426,0.12758025,67279.0,67278.0,0.41993865]
[1729893339617,0.12758025,67279.0,67278.0,0.3608]
[1729893340419,0.15402346,67279.0,67278.0,0.3608]
[1729893340819,0.07958346,67279.0,67275.0,0.05913865]
[1729893341116,0.074442,67277.0,67274.0,0.05913865]
[1729893341317,0.074442,67277.0,67273.0,0.05913865]
[1729893341318,0.047024,67275.0,67273.0,0.05913865]
[1729893342513,0.00798955,67274.0,67272.0,0.49737502]
[1729893342712,0.00798955,67274.0,67272.0,0.49661502]
[1729893343321,0.00798955,67274.0,67272.0,0.43747637]
[1729893343629,0.00798955,67273.0,67272.0,0.43747637]
[1729893344030,0.12945955,67273.0,67272.0,0.36302937]
[1729893344217,0.12945955,67273.0,67272.0,0.00222937]
[1729893344418,0.57541955,67273.0,67272.0,0.00222937]
[1729893347120,0.12945955,67273.0,67272.0,0.00222937]
[1729893351723,0.094048,67272.0,67266.0,0.3608]
[1729893351922,0.047024,67267.0,67264.0,0.074456]
[1729893352327,0.047024,67267.0,67266.0,0.3608]
[1729893352527,0.05501355,67267.0,67264.0,0.074456]
[1729893352725,0.05501355,67267.0,67266.0,0.3608]
[1729893354927,0.12946655,67267.0,67266.0,0.3608]
[1729893356122,0.15563546,67267.0,67266.0,0.3608]
[1729893362236,0.15563546,67267.0,67266.0,0.40513591]
[1729893364236,0.15563546,67267.0,67266.0,0.3608]
[1729893366739,0.074455,67265.0,67264.0,0.05913865]
[1729893367342,0.074455,67265.0,67262.0,0.436018]
[1729893367644,0.047024,67263.0,67262.0,0.3608]
[1729893367945,0.047024,67263.0,67262.0,0.435258]
[1729893368541,0.05501355,67263.0,67262.0,0.435258]
[1729893368743,0.05501355,67263.0,67262.0,0.074458]
[1729893369045,0.05501355,67263.0,67262.0,0.435258]
[1729893369945,0.12947055,67263.0,67262.0,0.435258]
[1729893371548,0.08244655,67263.0,67262.0,0.435258]
[1729893371740,0.12947055,67263.0,67262.0,0.435258]
[1729893373254,0.05501355,67263.0,67262.0,0.435258]
[1729893373457,0.00798955,67263.0,67262.0,0.435258]
[1729893376850,0.07319291,67267.0,67262.0,0.435258]
[1729893377055,0.07319291,67267.0,67266.0,0.074454]
[1729893377356,0.02616891,67267.0,67266.0,0.074454]
[1729893377558,0.047024,67271.0,67270.0,0.074449]
[1729893377754,0.047024,67271.0,67270.0,0.435249]
[1729893379752,0.094048,67271.0,67270.0,0.3608]
[1729893379950,0.047024,67271.0,67270.0,0.435249]
[1729893380145,0.094048,67271.0,67270.0,0.466349]
[1729893382563,0.105938,67271.0,67270.0,0.466349]
[1729893383756,0.105938,67271.0,67270.0,0.105549]
[1729893400262,0.105938,67271.0,67270.0,0.074449]
[1729893406671,0.105938,67271.0,67270.0,0.23692948]
[1729893407173,0.105938,67271.0,67270.0,0.16280394]
[1729893408173,0.058914,67271.0,67270.0,0.16281491]
[1729893409582,0.01189,67271.0,67270.0,0.79156194]
[1729893409787,0.01189,67271.0,67270.0,0.70282291]
[1729893410085,0.01189,67271.0,67270.0,0.35538291]
[1729893410482,0.01189,67271.0,67270.0,0.80134291]
[1729893410982,0.01189,67271.0,67270.0,0.90612455]
[1729893411177,0.01189,67271.0,67270.0,0.80134291]
[1729893411577,0.01189,67271.0,67270.0,0.81454374]
[1729893411793,0.01189,67271.0,67270.0,0.81344826]
[1729893412289,0.01189,67271.0,67270.0,1.61218216]
[1729893412489,0.074432,67286.0,67285.0,0.074433]
[1729893412691,0.121456,67286.0,67285.0,0.074433]
[1729893413188,0.121456,67286.0,67285.0,0.13361876]
[1729893414278,0.14845053,67286.0,67285.0,0.13361876]
[1729893414478,0.07401853,67286.0,67285.0,0.13361876]
[1729893414679,0.07401853,67286.0,67285.0,0.074433]
[1729893414877,0.02699453,67286.0,67285.0,0.074433]
[1729893415176,0.047024,67287.0,67286.0,0.074432]
[1729893415789,0.0308,67288.0,67287.0,0.074431]
[1729893416092,0.0308,67288.0,67287.0,0.11879045]
[1729893416389,0.05710156,67288.0,67287.0,0.074431]
[1729893418287,0.05710156,67288.0,67287.0,0.168479]
[1729893421083,0.02630156,67288.0,67287.0,0.168479]
[1729893421287,0.047024,67290.0,67289.0,0.074428]
[1729893422279,0.252378,67291.0,67287.0,0.094048]
[1729893422474,0.252378,67291.0,67290.0,0.074427]
[1729893422880,0.299402,67291.0,67290.0,0.074427]
[1729893423691,0.346426,67291.0,67290.0,0.074427]
[1729893424986,0.37349351,67291.0,67290.0,0.074427]
[1729893429393,0.27944551,67291.0,67290.0,0.074427]
[1729893434098,0.29132551,67291.0,67290.0,0.074427]
[1729893434492,0.03894751,67291.0,67290.0,0.074427]
[1729893435099,0.03894751,67291.0,67290.0,0.168475]
[1729893436193,0.03894751,67291.0,67290.0,0.21283445]
[1729893436390,0.03894751,67291.0,67290.0,0.168475]
[1729893439405,0.03894751,67291.0,67290.0,0.529275]
[1729893442601,0.03894751,67291.0,67290.0,0.168475]
[1729893442808,0.03894751,67291.0,67290.0,0.529275]
[1729893451801,0.03894751,67291.0,67290.0,0.52358993]
[1729893452004,0.03894751,67291.0,67290.0,0.61763793]
[1729893452905,0.03894751,67291.0,67290.0,0.435227]
[1729893453105,0.03894751,67291.0,67290.0,0.52351205]
[1729893455910,0.03894751,67291.0,67290.0,0.16271205]
[1729893456117,0.03894751,67291.0,67290.0,0.52351205]
[1729893458408,0.03894751,67291.0,67290.0,0.5234735]
[1729893459719,0.03894751,67291.0,67290.0,0.435227]
[1729893460220,0.03894751,67291.0,67290.0,0.47961385]
[1729893460921,0.03894751,67291.0,67290.0,0.57366185]
[1729893461423,0.03894751,67291.0,67290.0,0.529275]
[1729893463921,0.03894751,67291.0,67290.0,0.54589168]
[1729893464118,0.03894751,67291.0,67290.0,0.54589721]
[1729893464313,0.03894751,67291.0,67290.0,0.5458975]
[1729893464725,0.03894751,67291.0,67290.0,0.529275]
[1729893465916,0.03894751,67291.0,67290.0,0.54588936]
[1729893466235,0.03894751,67291.0,67290.0,0.529275]
[1729893466829,0.03894751,67291.0,67290.0,0.61734664]
[1729893467119,0.03894751,67291.0,67290.0,0.61734658]
[1729893469419,0.03894751,67291.0,67290.0,0.52329858]
[1729893469621,0.03894751,67291.0,67290.0,0.61734658]
[1729893471721,0.03894751,67291.0,67290.0,0.61728778]
[1729893473123,0.03894751,67291.0,67290.0,0.70606033]
[1729893473824,0.03894751,67291.0,67290.0,0.61728778]
[1729893474926,0.03894751,67291.0,67290.0,0.57366101]
[1729893475123,0.03894751,67291.0,67290.0,0.21286101]
[1729893475312,0.01188,67291.0,67290.0,0.529275]
[1729893475514,0.01188,67291.0,67290.0,0.54246973]
[1729893475823,0.185532,67308.0,67299.0,0.074417]
[1729893476024,0.111124,67308.0,67299.0,0.529265]
[1729893477523,0.02689623,67303.0,67299.0,0.529265]
[1729893477926,0.02689623,67303.0,67299.0,0.435217]
[1729893478124,0.02689623,67303.0,67299.0,0.467917]
[1729893479124,0.047024,67312.0,67299.0,0.467917]
[1729893479813,0.047024,67312.0,67299.0,0.107117]
[1729893480019,0.047024,67312.0,67299.0,0.467917]
[1729893480327,0.02663575,67304.0,67299.0,0.467917]
[1729893480529,0.06,67300.0,67299.0,0.467917]
[1729893481428,0.06,67300.0,67299.0,0.94238404]
[1729893481429,1e-06,67300.0,67299.0,0.94238404]
[1729893481618,1e-06,67300.0,67299.0,1.00154619]
[1729893481826,1e-06,67300.0,67299.0,1.03001513]
[1729893482124,1e-06,67300.0,67299.0,1.03932224]
[1729893482325,1e-06,67300.0,67299.0,1.06570332]
[1729893482625,1e-06,67300.0,67299.0,1.15994299]
[1729893482923,1e-06,67300.0,67299.0,1.15994242]
[1729893483129,1e-06,67300.0,67299.0,0.71418242]
[1729893483329,1e-06,67300.0,67299.0,1.15994242]
[1729893484128,1e-06,67300.0,67299.0,1.52074242]
[1729893484321,1e-06,67300.0,67299.0,1.50394352]
[1729893485332,1e-06,67300.0,67299.0,1.49463641]
[1729893486119,1e-06,67300.0,67299.0,1.4946364]
[1729893487625,1e-06,67300.0,67299.0,0.6789884]
[1729893487820,1e-06,67300.0,67299.0,1.4005884]
[1729893489928,1e-06,67300.0,67299.0,1.31295731]
[1729893490226,1e-06,67300.0,67299.0,0.59135731]
[1729893490430,1e-06,67300.0,67299.0,1.31295731]
[1729893492730,1e-06,67300.0,67299.0,0.59135731]
[1729893492935,1e-06,67300.0,67299.0,1.31295731]
[1729893493327,1e-06,67300.0,67299.0,1.31295734]
[1729893493530,1e-06,67300.0,67299.0,1.30551164]
[1729893493738,1e-06,67300.0,67299.0,1.31295734]
[1729893495127,1e-06,67300.0,67299.0,1.35716977]
[1729893496831,1e-06,67300.0,67299.0,1.40020914]
[1729893497134,1e-06,67300.0,67299.0,1.40020909]
[1729893498228,1e-06,67300.0,67299.0,1.40022395]
[1729893499233,1e-06,67300.0,67299.0,1.50424149]
[1729893499630,1e-06,67300.0,67299.0,1.40022395]
[1729893500135,1e-06,67300.0,67299.0,1.50424534]
[1729893501330,1e-06,67300.0,67299.0,1.40022395]
[1729893503037,1e-06,67300.0,67299.0,1.40026503]
[1729893503238,1e-06,67300.0,67299.0,1.6025665]
[1729893506147,1e-06,67300.0,67299.0,1.59046729]
[1729893506838,1e-06,67300.0,67299.0,0.86886729]
[1729893507032,1e-06,67300.0,67299.0,1.59046729]
[1729893507234,1e-06,67300.0,67299.0,0.86886729]
[1729893507533,1e-06,67300.0,67299.0,1.59046729]
[1729893507736,1e-06,67300.0,67299.0,1.59072712]
[1729893508348,1e-06,67300.0,67299.0,1.60282633]
[1729893509341,1e-06,67300.0,67299.0,1.72392246]
[1729893510343,1e-06,67300.0,67299.0,1.84217575]
[1729893511035,1e-06,67300.0,67299.0,1.85148275]
[1729893511836,1e-06,67300.0,67299.0,1.62615936]
[1729893512029,1e-06,67300.0,67299.0,1.50790607]
[1729893513039,1e-06,67300.0,67299.0,0.78630607]
[1729893513240,1e-06,67300.0,67299.0,1.50790607]
[1729893513443,1e-06,67300.0,67299.0,1.50790598]
[1729893514146,1e-06,67300.0,67299.0,1.59662334]
[1729893514450,1e-06,67300.0,67299.0,1.50790598]
[1729893515741,1e-06,67300.0,67299.0,1.596621]
[1729893516136,0.05870361,67314.0,67313.0,0.074402]
[1729893516341,0.05870361,67314.0,67313.0,0.435202]
[1729893516537,0.05870361,67314.0,67313.0,0.47955915]
[1729893519941,0.05870361,67314.0,67313.0,0.16202839]
[1729893520248,0.05870361,67314.0,67313.0,0.52282839]
[1729893521849,0.05870361,67314.0,67313.0,0.52282949]
[1729893522747,0.05870361,67314.0,67313.0,0.16202949]
[1729893522952,0.05870361,67314.0,67313.0,0.52282949]
[1729893523540,0.05870361,67314.0,67313.0,0.16202949]
[1729893523747,0.05870361,67314.0,67313.0,0.52282949]
[1729893523948,0.05870361,67314.0,67313.0,0.56985349]
[1729893525055,0.05870361,67314.0,67313.0,0.61687749]
[1729893525850,0.05870361,67314.0,67313.0,0.25607749]
[1729893526056,0.0321,67314.0,67313.0,0.62726094]
[1729893526447,0.0321,67314.0,67313.0,0.72130894]
[1729893526647,0.0321,67314.0,67313.0,0.62726094]
[1729893527147,0.0321,67314.0,67313.0,0.47949688]
[1729893527352,0.0321,67314.0,67313.0,0.435202]
[1729893530265,0.0321,67314.0,67313.0,0.47947774]
[1729893530456,0.0321,67314.0,67313.0,0.435202]
[1729893530853,0.0579461,67320.0,67319.0,0.074395]
[1729893531062,0.0579461,67320.0,67319.0,0.435195]
[1729893533052,0.0262461,67320.0,67319.0,0.435195]
[1729893533255,0.0305,67330.0,67319.0,0.3608]
[1729893533458,0.04757247,67329.0,67328.0,0.074385]
[1729893535065,0.0305,67330.0,67329.0,0.074384]
[1729893535564,0.47606,67330.0,67329.0,0.074384]
[1729893536167,0.0305,67330.0,67329.0,0.074384]
[1729893539061,0.047024,67329.0,67327.0,0.04427516]
[1729893539257,0.074385,67328.0,67319.0,0.04423824]
[1729893539457,0.074385,67328.0,67317.0,0.074396]
[1729893539458,0.074396,67318.0,67317.0,0.074396]